fUSD/lending_fUSD_20251122
["ID","MTS","AMOUNT","RATE_DAILY","PERIOD"]
[394641537,1763806280037,-804.3,0.00017534,2]
[394641538,1763806280046,-674.23,0.00017534,2]
[394641539,1763806280056,-1191.45,0.00017534,2]
[394641540,1763806280065,-585.41,0.00017534,2]
[394641541,1763806280074,-513.64699892,0.00017534,2]
[394641542,1763806280084,-500.0,0.00017534,2]
[394641543,1763806280093,-500.0,0.00017534,2]
[394641544,1763806280102,-839.14,0.00017534,2]
[394641545,1763806280110,-500.0,0.00017534,2]
[394641546,1763806280119,-564.02,0.00017534,2]
[394641547,1763806280128,-505.12,0.00017534,2]
[394641548,1763806280138,-559.83,0.00017534,2]
[394641549,1763806280147,-500.0,0.00017534,2]
[394641550,1763806280156,-500.0,0.00017534,2]
[394641551,1763806280167,-500.0,0.00017534,2]
[394641552,1763806280176,-500.0,0.00017534,2]
[394641553,1763806280185,-1055.95,0.00017534,2]
[394641554,1763806280195,-1463.02,0.00017534,2]
[394641555,1763806280204,-521.42,0.00017534,2]
[394641556,1763806280214,-733.24,0.00017534,2]
[394641557,1763806280223,-782.33,0.00017534,2]
[394641558,1763806280232,-500.0,0.00017534,2]
[394641559,1763806280242,-734.36,0.00017534,2]
[394641560,1763806280251,-500.0,0.00017534,2]
[394641561,1763806280261,-500.0,0.00017534,2]
[394641562,1763806280271,-500.0,0.00017534,2]
[394641563,1763806280290,-839.69,0.00017534,2]
[394641564,1763806280300,-500.0,0.00017534,2]
[394641565,1763806280310,-500.0,0.00017534,2]
[394641566,1763806280321,-1249.82,0.00017534,2]
[394641567,1763806280330,-1049.8,0.00017534,2]
[394641568,1763806280340,-523.31,0.00017534,2]
[394641569,1763806280350,-500.0,0.00017534,2]
[394641570,1763806280360,-1579.91,0.00017534,2]
[394641571,1763806280370,-500.0,0.00017534,2]
[394641572,1763806280380,-151.20013697,0.00017534,2]
[394641573,1763806280391,-500.0,0.00017534,2]
[394641574,1763806280401,-500.0,0.00017534,2]
[394641575,1763806280411,-500.0,0.00017534,2]
[394641576,1763806280421,-532.69,0.00017534,2]
[394641577,1763806280430,-570.72,0.00017534,2]
[394641578,1763806280440,-500.0,0.00017534,2]
[394641579,1763806280450,-515.86,0.00017534,2]
[394641580,1763806280460,-1073.42,0.00017534,2]
[394641581,1763806280470,-1688.87,0.00017534,2]
[394641582,1763806280480,-500.0,0.00017534,2]
[394641583,1763806280490,-500.0,0.00017534,2]
[394641584,1763806280500,-602.73,0.00017534,2]
[394641585,1763806280510,-786.03,0.00017534,2]
[394641586,1763806280520,-500.0,0.00017534,2]
[394641587,1763806280530,-500.0,0.00017534,2]
[394641588,1763806280540,-500.0,0.00017534,2]
[394641589,1763806280550,-1309.89,0.00017534,2]
[394641590,1763806280560,-500.0,0.00017534,2]
[394641591,1763806280570,-500.0,0.00017534,2]
[394641592,1763806280579,-500.0,0.00017534,2]
[394641593,1763806280589,-919.35,0.00017534,2]
[394641594,1763806280599,-606.55,0.00017534,2]
[394641595,1763806280609,-523.55,0.00017534,2]
[394641596,1763806280620,-816.25,0.00017534,2]
[394641597,1763806280631,-500.0,0.00017534,2]
[394641598,1763806280641,-329.61780632,0.00017534,2]
[394641599,1763806280651,-500.0,0.00017534,2]
[394641600,1763806280661,-500.0,0.00017534,2]
[394641601,1763806280671,-500.0,0.00017534,2]
[394641602,1763806280683,-1202.89,0.00017534,2]
[394641603,1763806280693,-696.52,0.00017534,2]
[394641604,1763806280703,-532.1,0.00017534,2]
[394641605,1763806280713,-500.0,0.00017534,2]
[394641606,1763806280724,-1008.12,0.00017534,2]
[394641607,1763806280738,-771.55,0.00017534,2]
[394641608,1763806280748,-682.29,0.00017534,2]
[394641609,1763806280758,-597.76,0.00017534,2]
[394641610,1763806280768,-2185.15,0.00017534,2]
[394641611,1763806280779,-500.0,0.00017534,2]
[394641612,1763806280790,-500.0,0.00017534,2]
[394641613,1763806280800,-500.0,0.00017534,2]
[394641614,1763806280812,-935.0,0.00017534,2]
[394641615,1763806280823,-561.06,0.00017534,2]
[394641616,1763806280833,-439.89943891,0.00017534,2]
[394641617,1763806280844,-558.65,0.00017534,2]
[394641618,1763806280854,-500.0,0.00017534,2]
[394641619,1763806280864,-1048.65,0.00017534,2]
[394641620,1763806280874,-500.0,0.00017534,2]
[394641621,1763806280890,-500.0,0.00017534,2]
[394641622,1763806280900,-517.79,0.00017534,2]
[394641623,1763806280910,-500.0,0.00017534,2]
[394641624,1763806280920,-500.0,0.00017534,2]
[394641625,1763806280930,-500.0,0.00017534,2]
[394641626,1763806280940,-388.4713169,0.00017534,2]
[394641627,1763806280949,-500.0,0.00017534,2]
[394641628,1763806280960,-1090.24,0.00017534,2]
[394641629,1763806280970,-776.75,0.00017534,2]
[394641630,1763806280980,-500.0,0.00017534,2]
[394641631,1763806280991,-595.92,0.00017534,2]
[394641632,1763806281001,-500.0,0.00017534,2]
[394641633,1763806281010,-500.0,0.00017534,2]
[394641634,1763806281020,-500.0,0.00017534,2]
[394641635,1763806281030,-500.0,0.00017534,2]
[394641636,1763806281039,-500.0,0.00017534,2]
[394641637,1763806281050,-2164.02,0.00017534,2]
[394641638,1763806281060,-500.0,0.00017534,2]
[394641639,1763806281070,-500.0,0.00017534,2]
[394641640,1763806281081,-500.0,0.00017534,2]
[394641641,1763806281091,-500.0,0.00017534,2]
[394641642,1763806281101,-655.49,0.00017534,2]
[394641643,1763806281111,-1677.03,0.00017534,2]
[394641644,1763806281121,-7021.18,0.00017534,2]
[394641645,1763806281133,-500.0,0.00017534,2]
[394641646,1763806281143,-696.44,0.00017534,2]
[394641647,1763806281153,-786.49,0.00017534,2]
[394641648,1763806281163,-500.0,0.00017534,2]
[394641649,1763806281173,-500.0,0.00017534,2]
[394641650,1763806281182,-500.0,0.00017534,2]
[394641651,1763806281192,-1780.25,0.00017534,2]
[394641652,1763806281201,-557.18,0.00017534,2]
[394641653,1763806281215,-987.68,0.00017534,2]
[394641654,1763806281225,-1070.85,0.00017534,2]
[394641655,1763806281235,-672.12,0.00017534,2]
[394641656,1763806281245,-500.0,0.00017534,2]
[394641657,1763806281255,-702.43,0.00017534,2]
[394641658,1763806281264,-628.98,0.00017534,2]
[394641659,1763806281275,-586.32,0.00017534,2]
[394641660,1763806281284,-500.0,0.00017534,2]
[394641661,1763806281293,-500.0,0.00017534,2]
[394641662,1763806281303,-500.0,0.00017534,2]
[394641663,1763806281312,-500.0,0.00017534,2]
[394641664,1763806281322,-1078.17,0.00017534,2]
[394641665,1763806281332,-500.0,0.00017534,2]
[394641666,1763806281343,-500.0,0.00017534,2]
[394641667,1763806281352,-500.0,0.00017534,2]
[394641668,1763806281362,-500.0,0.00017534,2]
[394641669,1763806281372,-557.34,0.00017534,2]
[394641670,1763806281385,-500.0,0.00017534,2]
[394641671,1763806281394,-500.0,0.00017534,2]
[394641672,1763806281405,-631.15,0.00017534,2]
[394641673,1763806281415,-1073.87,0.00017534,2]
[394641674,1763806281425,-500.0,0.00017534,2]
[394641675,1763806281435,-503.62,0.00017534,2]
[394641676,1763806281446,-500.0,0.00017534,2]
[394641677,1763806281457,-500.0,0.00017534,2]
[394641678,1763806281466,-881.11,0.00017534,2]
[394641679,1763806281476,-500.0,0.00017534,2]
[394641680,1763806281485,-5846.52,0.00017534,2]
[394641681,1763806281495,-500.0,0.00017534,2]
[394641682,1763806281506,-729.49,0.00017534,2]
[394641683,1763806281515,-4450.71,0.00017534,2]
[394641684,1763806281525,-3727.77,0.00017534,2]
[394641685,1763806281535,-500.0,0.00017534,2]
[394641686,1763806281545,-500.0,0.00017534,2]
[394641687,1763806281555,-673.15,0.00017534,2]
[394641688,1763806281566,-867.82,0.00017534,2]
[394641689,1763806281576,-500.0,0.00017534,2]
[394641690,1763806281585,-674.27,0.00017534,2]
[394641691,1763806281595,-500.0,0.00017534,2]
[394641692,1763806281604,-500.0,0.00017534,2]
[394641693,1763806281616,-1064.84,0.00017534,2]
[394641694,1763806281625,-978.13,0.00017534,2]
[394641695,1763806281636,-500.0,0.00017534,2]
[394641696,1763806281646,-1344.66,0.00017534,2]
[394641697,1763806281655,-651.06,0.00017534,2]
[394641698,1763806281665,-500.0,0.00017534,2]
[394641699,1763806281675,-835.55,0.00017534,2]
[394641700,1763806281685,-500.0,0.00017534,2]
[394641701,1763806281695,-500.0,0.00017534,2]
[394641702,1763806281705,-556.11204856,0.00017534,2]
[394641703,1763806281715,-776.5,0.00017534,2]
[394641704,1763806281725,-511.40050693,0.00017534,2]
[394641705,1763806281848,-567.01,0.00017534,2]
[394641706,1763806281858,-662.91,0.00017534,2]
[394641707,1763806281868,-500.0,0.00017534,2]
[394641708,1763806281880,-519.69808945,0.00017534,2]
[394641709,1763806281890,-765.48,0.00017534,2]
[394641710,1763806281900,-577.58,0.00017534,2]
[394641711,1763806281910,-819.38,0.00017534,2]
[394641712,1763806281919,-500.0,0.00017534,2]
[394641713,1763806281932,-500.0,0.00017534,2]
[394641714,1763806281942,-994.62,0.00017534,2]
[394641715,1763806281952,-2977.14,0.00017534,2]
[394641716,1763806281961,-500.0,0.00017534,2]
[394641717,1763806281971,-500.0,0.00017534,2]
[394641718,1763806281980,-584.85,0.00017534,2]
[394641719,1763806281990,-785.63,0.00017534,2]
[394641720,1763806281999,-500.0,0.00017534,2]
[394641721,1763806282008,-427.89,0.00017534,2]
[394641722,1763806282018,-600.0,0.00017534,2]
[394641723,1763806282027,-554.24080951,0.00017553,2]
[394641724,1763806282036,-1500.0,0.00017568,2]
[394641725,1763806282045,-2190.14597,0.0001758,2]
[394641726,1763806282055,-500.0,0.00017671,2]
[394641727,1763806282065,-651.0,0.00017671,2]
[394641728,1763806282074,-500.0,0.00017671,2]
[394641729,1763806282084,-500.0,0.00017671,2]
[394641730,1763806282093,-500.0,0.00017671,2]
[394641731,1763806282102,-500.0,0.00017671,2]
[394641732,1763806282111,-469.0,0.00017671,2]
[394641733,1763806282120,-553.0,0.00017671,2]
[394641734,1763806282132,-502.59676737,0.00017685,2]
[394641735,1763806282141,-554.24080951,0.00017726,2]
[394641736,1763806282150,-500.0,0.00017808,2]
[394641737,1763806282160,-651.0,0.00017808,2]
[394641738,1763806282169,-500.0,0.00017808,2]
[394641739,1763806282178,-427.02318934,0.00017808,2]
[394641740,1763806282188,-273.90319207,0.00017808,2]
[394641741,1763806282197,-500.0,0.00017808,2]
[394641742,1763806282207,-469.0,0.00017808,2]
[394641743,1763806282217,-553.0,0.00017808,2]
[394641744,1763806282226,-500.0,0.00017808,2]
[394641745,1763806282235,-500.0,0.00017808,2]
[394641746,1763806282244,-500.0,0.00017808,2]
[394641747,1763806282254,-500.0,0.00017808,2]
[394641748,1763806282263,-500.0,0.00017808,2]
[394641749,1763806282272,-867.5,0.00017808,2]
[394641750,1763806282281,-500.0,0.00017808,2]
[394641751,1763806282291,-500.0,0.00017808,2]
[394641752,1763806282300,-500.0,0.00017808,2]
[394641753,1763806282309,-643.22,0.00017808,2]
[394641754,1763806282318,-843.09,0.00017808,2]
[394641755,1763806282327,-664.19,0.00017808,2]
[394641756,1763806282337,-579.49,0.00017808,2]
[394641757,1763806282346,-944.02,0.00017808,2]
[394641758,1763806282355,-500.0,0.00017808,2]
[394641759,1763806282365,-781.7,0.00017808,2]
[394641760,1763806282375,-500.0,0.00017808,2]
[394641761,1763806282387,-754.3,0.00017808,2]
[394641762,1763806282397,-574.71210983,0.00017808,2]
[394641763,1763806282406,-500.0,0.00017808,2]
[394641764,1763806282415,-500.0,0.00017808,2]
[394641765,1763806282425,-826.89,0.00017808,2]
[394641766,1763806282434,-500.0,0.00017808,2]
[394641767,1763806282444,-500.0,0.00017808,2]
[394641768,1763806282455,-760.07,0.00017808,2]
[394641769,1763806282465,-660.25,0.00017808,2]
[394641770,1763806282475,-500.0,0.00017808,2]
[394641771,1763806282486,-514.15583182,0.00017808,2]
[394641772,1763806282498,-500.0,0.00017808,2]
[394641773,1763806282508,-500.0,0.00017808,2]
[394641774,1763806282517,-620.59,0.00017808,2]
[394641775,1763806282527,-718.76,0.00017808,2]
[394641776,1763806282536,-589.29,0.00017808,2]
[394641777,1763806282545,-520.97436725,0.00017808,2]
[394641778,1763806282554,-523.48,0.00017808,2]
[394641779,1763806282563,-500.0,0.00017808,2]
[394641780,1763806282572,-500.0,0.00017808,2]
[394641781,1763806282582,-1151.27,0.00017808,2]
[394641782,1763806282591,-539.63,0.00017808,2]
[394641783,1763806282600,-500.0,0.00017808,2]
[394641784,1763806282610,-943.25,0.00017808,2]
[394641785,1763806282619,-500.0,0.00017808,2]
[394641786,1763806282629,-532.89,0.00017808,2]
[394641787,1763806282639,-500.0,0.00017808,2]
[394641788,1763806282648,-500.0,0.00017808,2]
[394641789,1763806282657,-717.92,0.00017808,2]
[394641790,1763806282666,-500.0,0.00017808,2]
[394641791,1763806282675,-178.4733644,0.00017808,2]
[394641792,1763806282684,-791.9,0.00017808,2]
[394641793,1763806282693,-500.0,0.00017808,2]
[394641794,1763806282703,-671.16,0.00017808,2]
[394641795,1763806282712,-513.69,0.00017808,2]
[394641796,1763806282722,-718.46,0.00017808,2]
[394641797,1763806282738,-903.01,0.00017808,2]
[394641798,1763806282748,-500.0,0.00017808,2]
[394641799,1763806282758,-500.0,0.00017808,2]
[394641800,1763806282768,-500.0,0.00017808,2]
[394641801,1763806282778,-619.27,0.00017808,2]
[394641802,1763806282787,-633.07,0.00017808,2]
[394641803,1763806282796,-512.4,0.00017808,2]
[394641804,1763806282806,-734.0,0.00017808,2]
[394641805,1763806282815,-686.05,0.00017808,2]
[394641806,1763806282825,-689.73,0.00017808,2]
[394641807,1763806282834,-515.09,0.00017808,2]
[394641808,1763806282843,-534.13,0.00017808,2]
[394641809,1763806282853,-909.79,0.00017808,2]
[394641810,1763806282862,-500.0,0.00017808,2]
[394641811,1763806282871,-987.88,0.00017808,2]
[394641812,1763806282881,-500.0,0.00017808,2]
[394641813,1763806282890,-500.0,0.00017808,2]
[394641814,1763806282899,-1118.33,0.00017808,2]
[394641815,1763806282907,-593.96,0.00017808,2]
[394641816,1763806282917,-532.39,0.00017808,2]
[394641817,1763806282927,-500.0,0.00017808,2]
[394641818,1763806282936,-500.0,0.00017808,2]
[394641819,1763806282945,-512.56492849,0.00017808,2]
[394641820,1763806282955,-500.0,0.00017808,2]
[394641821,1763806282964,-500.0,0.00017808,2]
[394641822,1763806282974,-500.0,0.00017808,2]
[394641823,1763806282983,-500.0,0.00017808,2]
[394641824,1763806282993,-500.0,0.00017808,2]
[394641825,1763806283002,-500.0,0.00017808,2]
[394641826,1763806283011,-500.0,0.00017808,2]
[394641827,1763806283021,-500.0,0.00017808,2]
[394641828,1763806283031,-500.0,0.00017808,2]
[394641829,1763806283040,-745.16,0.00017808,2]
[394641830,1763806283050,-643.4,0.00017808,2]
[394641831,1763806283059,-760.48,0.00017808,2]
[394641832,1763806283069,-500.0,0.00017808,2]
[394641833,1763806283079,-500.0,0.00017808,2]
[394641834,1763806283088,-660.26,0.00017808,2]
[394641835,1763806283098,-500.0,0.00017808,2]
[394641836,1763806283108,-500.0,0.00017808,2]
[394641837,1763806283117,-500.0,0.00017808,2]
[394641838,1763806283126,-500.0,0.00017808,2]
[394641839,1763806283136,-643.35,0.00017808,2]
[394641840,1763806283146,-536.96,0.00017808,2]
[394641841,1763806283155,-561.03,0.00017808,2]
[394641842,1763806283164,-667.06,0.00017808,2]
[394641843,1763806283174,-551.80874996,0.00017808,2]
[394641844,1763806283183,-500.0,0.00017808,2]
[394641845,1763806283192,-500.0,0.00017808,2]
[394641846,1763806283202,-840.36,0.00017808,2]
[394641847,1763806283211,-588.85,0.00017808,2]
[394641848,1763806283221,-527.44,0.00017808,2]
[394641849,1763806283230,-500.0,0.00017808,2]
[394641850,1763806283239,-500.0,0.00017808,2]
[394641851,1763806283249,-1117.89,0.00017808,2]
[394641852,1763806283258,-500.0,0.00017808,2]
[394641853,1763806283267,-761.79,0.00017808,2]
[394641854,1763806283277,-620.55,0.00017808,2]
[394641855,1763806283286,-500.0,0.00017808,2]
[394641856,1763806283296,-593.36,0.00017808,2]
[394641857,1763806283306,-500.0,0.00017808,2]
[394641858,1763806283315,-676.83,0.00017808,2]
[394641859,1763806283325,-900.44,0.00017808,2]
[394641860,1763806283335,-1015.0,0.00017808,2]
[394641861,1763806283344,-588.06,0.00017808,2]
[394641862,1763806283353,-511.04,0.00017808,2]
[394641863,1763806283363,-500.0,0.00017808,2]
[394641864,1763806283373,-1144.77,0.00017808,2]
[394641865,1763806283384,-787.96,0.00017808,2]
[394641866,1763806283393,-500.0,0.00017808,2]
[394641867,1763806283403,-500.0,0.00017808,2]
[394641868,1763806283413,-865.95,0.00017808,2]
[394641869,1763806283424,-592.3,0.00017808,2]
[394641870,1763806283433,-540.6,0.00017808,2]
[394641871,1763806283443,-500.0,0.00017808,2]
[394641872,1763806283452,-790.49,0.00017808,2]
[394641873,1763806283462,-580.1,0.00017808,2]
[394641874,1763806283471,-500.0,0.00017808,2]
[394641875,1763806283481,-766.2,0.00017808,2]
[394641876,1763806283491,-557.29,0.00017808,2]
[394641877,1763806283500,-500.0,0.00017808,2]
[394641878,1763806283510,-500.0,0.00017808,2]
[394641879,1763806283520,-637.13,0.00017808,2]
[394641880,1763806283529,-1511.77,0.00017808,2]
[394641881,1763806283538,-699.88,0.00017808,2]
[394641882,1763806283547,-500.0,0.00017808,2]
[394641883,1763806283557,-705.23,0.00017808,2]
[394641884,1763806283567,-500.0,0.00017808,2]
[394641885,1763806283577,-768.25,0.00017808,2]
[394641886,1763806283587,-561.04,0.00017808,2]
[394641887,1763806283597,-500.0,0.00017808,2]
[394641888,1763806283608,-681.07,0.00017808,2]
[394641889,1763806283618,-292.5,0.00017808,2]
[394641890,1763806283627,-889.28,0.00017808,2]
[394641891,1763806283638,-500.0,0.00017808,2]
[394641892,1763806283648,-500.0,0.00017808,2]
[394641893,1763806283657,-500.0,0.00017808,2]
[394641894,1763806283667,-500.0,0.00017808,2]
[394641895,1763806283677,-910.7,0.00017808,2]
[394641896,1763806283687,-581.69,0.00017808,2]
[394641897,1763806283696,-681.0,0.00017808,2]
[394641898,1763806283706,-500.0,0.00017808,2]
[394641899,1763806283715,-500.0,0.00017808,2]
[394641900,1763806283724,-561.58,0.00017808,2]
[394641901,1763806283734,-520.44,0.00017808,2]
[394641902,1763806283747,-892.07,0.00017808,2]
[394641903,1763806283758,-500.0,0.00017808,2]
[394641904,1763806283768,-500.0,0.00017808,2]
[394641905,1763806283779,-648.76,0.00017808,2]
[394641906,1763806283788,-540.37,0.00017808,2]
[394641907,1763806283798,-500.0,0.00017808,2]
[394641908,1763806283808,-500.0,0.00017808,2]
[394641909,1763806283819,-1478.21,0.00017808,2]
[394641910,1763806283829,-500.0,0.00017808,2]
[394641911,1763806283839,-500.0,0.00017808,2]
[394641912,1763806283848,-680.96,0.00017808,2]
[394641913,1763806283859,-500.0,0.00017808,2]
[394641914,1763806283868,-685.91,0.00017808,2]
[394641915,1763806283878,-500.0,0.00017808,2]
[394641916,1763806283889,-778.77,0.00017808,2]
[394641917,1763806283899,-500.0,0.00017808,2]
[394641918,1763806283909,-500.0,0.00017808,2]
[394641919,1763806283918,-500.0,0.00017808,2]
[394641920,1763806283928,-500.0,0.00017808,2]
[394641921,1763806283937,-714.38,0.00017808,2]
[394641922,1763806283947,-500.0,0.00017808,2]
[394641923,1763806283956,-500.0,0.00017808,2]
[394641924,1763806283965,-758.68,0.00017808,2]
[394641925,1763806283975,-745.24,0.00017808,2]
[394641926,1763806283984,-758.78,0.00017808,2]
[394641927,1763806283994,-1003.75,0.00017808,2]
[394641928,1763806284003,-500.0,0.00017808,2]
[394641929,1763806284012,-500.0,0.00017808,2]
[394641930,1763806284022,-500.0,0.00017808,2]
[394641931,1763806284031,-500.0,0.00017808,2]
[394641932,1763806284042,-753.49,0.00017808,2]
[394641933,1763806284052,-697.04,0.00017808,2]
[394641934,1763806284062,-595.07,0.00017808,2]
[394641935,1763806284071,-649.81425738,0.00017808,2]
[394641936,1763806284081,-892.51,0.00017808,2]
[394641937,1763806284090,-500.0,0.00017808,2]
[394641938,1763806284099,-507.73,0.00017808,2]
[394641939,1763806284109,-500.0,0.00017808,2]
[394641940,1763806284119,-500.0,0.00017808,2]
[394641941,1763806284129,-817.08,0.00017808,2]
[394641942,1763806284140,-500.0,0.00017808,2]
[394641943,1763806284150,-1276.37,0.00017808,2]
[394641944,1763806284159,-598.13,0.00017808,2]
[394641945,1763806284169,-500.0,0.00017808,2]
[394641946,1763806284178,-500.0,0.00017808,2]
[394641947,1763806284188,-683.96,0.00017808,2]
[394641948,1763806284198,-500.0,0.00017808,2]
[394641949,1763806284208,-724.4,0.00017808,2]
[394641950,1763806284218,-500.0,0.00017808,2]
[394641951,1763806284227,-700.99,0.00017808,2]
[394641952,1763806284237,-506.6,0.00017808,2]
[394641953,1763806284247,-500.0,0.00017808,2]
[394641954,1763806284256,-500.0,0.00017808,2]
[394641955,1763806284265,-830.04,0.00017808,2]
[394641956,1763806284274,-500.0,0.00017808,2]
[394641957,1763806284283,-509.8,0.00017808,2]
[394641958,1763806284292,-500.0,0.00017808,2]
[394641959,1763806284301,-321.93090797,0.00017808,2]
[394641960,1763806284310,-645.82,0.00017808,2]
[394641961,1763806284319,-500.0,0.00017808,2]
[394641962,1763806284329,-500.0,0.00017808,2]
[394641963,1763806284338,-500.0,0.00017808,2]
[394641964,1763806284347,-500.0,0.00017808,2]
[394641965,1763806284357,-500.0,0.00017808,2]
[394641966,1763806284366,-500.0,0.00017808,2]
[394641967,1763806284375,-651.49,0.00017808,2]
[394641968,1763806284387,-500.0,0.00017808,2]
[394641969,1763806284396,-500.0,0.00017808,2]
[394641970,1763806284406,-500.0,0.00017808,2]
[394641971,1763806284416,-680.93,0.00017808,2]
[394641972,1763806284426,-950.5,0.00017808,2]
[394641973,1763806284435,-500.0,0.00017808,2]
[394641974,1763806284444,-768.8,0.00017808,2]
[394641975,1763806284455,-1163.93,0.00017808,2]
[394641976,1763806284464,-938.85,0.00017808,2]
[394641977,1763806284474,-500.0,0.00017808,2]
[394641978,1763806284485,-816.31,0.00017808,2]
[394641979,1763806284494,-500.0,0.00017808,2]
[394641980,1763806284503,-560.40092279,0.00017808,2]
[394641981,1763806284512,-695.83,0.00017808,2]
[394641982,1763806284522,-500.0,0.00017808,2]
[394641983,1763806284531,-1025.64,0.00017808,2]
[394641984,1763806284541,-692.67,0.00017808,2]
[394641985,1763806284550,-970.47,0.00017808,2]
[394641986,1763806284560,-500.0,0.00017808,2]
[394641987,1763806284569,-500.0,0.00017808,2]
[394641988,1763806284579,-500.0,0.00017808,2]
[394641989,1763806284588,-500.0,0.00017808,2]
[394641990,1763806284597,-5173.16,0.00017808,2]
[394641991,1763806284607,-500.0,0.00017808,2]
[394641992,1763806284616,-500.0,0.00017808,2]
[394641993,1763806284626,-500.0,0.00017808,2]
[394641994,1763806284636,-500.0,0.00017808,2]
[394641995,1763806284645,-500.0,0.00017808,2]
[394641996,1763806284655,-974.11,0.00017808,2]
[394641997,1763806284664,-500.0,0.00017808,2]
[394641998,1763806284674,-500.0,0.00017808,2]
[394641999,1763806284683,-500.0,0.00017808,2]
[394642000,1763806284693,-500.0,0.00017808,2]
[394642001,1763806284703,-942.8,0.00017808,2]
[394642002,1763806284712,-1130.33,0.00017808,2]
[394642003,1763806284722,-500.0,0.00017808,2]
[394642004,1763806284738,-2544.87,0.00017808,2]
[394642005,1763806284747,-804.3,0.00017808,2]
[394642006,1763806284760,-674.23,0.00017808,2]
[394642007,1763806284775,-1191.45,0.00017808,2]
[394642008,1763806284784,-585.41,0.00017808,2]
[394642009,1763806284794,-500.0,0.00017808,2]
[394642010,1763806284803,-500.0,0.00017808,2]
[394642011,1763806284814,-839.14,0.00017808,2]
[394642012,1763806284824,-527.76919419,0.00017808,2]
[394642013,1763806284834,-564.02,0.00017808,2]
[394642014,1763806284843,-505.12,0.00017808,2]
[394642015,1763806284853,-559.83,0.00017808,2]
[394642016,1763806284862,-500.0,0.00017808,2]
[394642017,1763806284872,-500.0,0.00017808,2]
[394642018,1763806284882,-500.0,0.00017808,2]
[394642019,1763806284891,-372.07706321,0.00017808,2]
[394642020,1763806284900,-1055.95,0.00017808,2]
[394642021,1763806284910,-1463.02,0.00017808,2]
[394642022,1763806284919,-521.42,0.00017808,2]
[394642023,1763806284928,-733.24,0.00017808,2]
[394642024,1763806284938,-782.33,0.00017808,2]
[394642025,1763806284947,-500.0,0.00017808,2]
[394642026,1763806284957,-734.36,0.00017808,2]
[394642027,1763806284966,-500.0,0.00017808,2]
[394642028,1763806284976,-500.0,0.00017808,2]
[394642029,1763806284985,-500.0,0.00017808,2]
[394642030,1763806284994,-839.69,0.00017808,2]
[394642031,1763806285003,-500.0,0.00017808,2]
[394642032,1763806285013,-500.0,0.00017808,2]
[394642033,1763806285022,-1249.82,0.00017808,2]
[394642034,1763806285033,-1049.8,0.00017808,2]
[394642035,1763806285042,-523.31,0.00017808,2]
[394642036,1763806285052,-500.0,0.00017808,2]